[Event "*** Titled Tuesday Blitz"]
[Site "Chess.com"]
[Date "2021.04.06"]
[Round "2"]
[White "Louis64"]
[Black "willc-h99"]
[Result "0-1"]
[WhiteElo "2270"]
[BlackElo "2510"]
[TimeControl "180+1"]
[EndTime "10:19:23 PDT"]
[Termination "willc-h99 won on time"]

1. e4 {[%clk 0:03:00.9]} 1... d5 {[%clk 0:02:57.6]} 2. exd5 {[%clk 0:03:00.1]}
2... Qxd5 {[%clk 0:02:57.9]} 3. Nf3 {[%clk 0:03:00.3]} 3... Bg4 {[%clk
0:02:57.7]} 4. Be2 {[%clk 0:02:59.6]} 4... Nc6 {[%clk 0:02:58.1]} 5. O-O {[%clk
0:02:59]} 5... O-O-O {[%clk 0:02:57.3]} 6. h3 {[%clk 0:02:59.1]} 6... Bh5 {[%clk
0:02:42.5]} 7. Nc3 {[%clk 0:02:58.6]} 7... Qd7 {[%clk 0:02:39.7]} 8. b4 {[%clk
0:02:58.7]} 8... Nxb4 {[%clk 0:02:17.2]} 9. Ne5 {[%clk 0:02:46.8]} 9... Bxe2
{[%clk 0:02:09.1]} 10. Qxe2 {[%clk 0:02:46.9]} 10... Qe8 {[%clk 0:01:45.7]} 11.
Rb1 {[%clk 0:02:41.3]} 11... e6 {[%clk 0:01:40.2]} 12. Ba3 {[%clk 0:02:11.7]}
12... Nd5 {[%clk 0:01:30]} 13. Bxf8 {[%clk 0:02:03.8]} 13... Qxf8 {[%clk
0:01:22.1]} 14. Qb5 {[%clk 0:01:16.7]} 14... Nb6 {[%clk 0:01:19.2]} 15. a4
{[%clk 0:01:06.3]} 15... a6 {[%clk 0:01:11.6]} 16. Qb3 {[%clk 0:01:03.9]} 16...
Qc5 {[%clk 0:00:53]} 17. Nxf7 {[%clk 0:01:01.2]} 17... Nf6 {[%clk 0:00:52.4]}
18. Nxh8 {[%clk 0:01:00.4]} 18... Rxh8 {[%clk 0:00:50.6]} 19. Qxe6+ {[%clk
0:00:57.4]} 19... Kb8 {[%clk 0:00:50.7]} 20. Qe3 {[%clk 0:00:52.3]} 20... Qa5
{[%clk 0:00:46]} 21. Qd4 {[%clk 0:00:45.3]} 21... Qf5 {[%clk 0:00:35.7]} 22. d3
{[%clk 0:00:40.8]} 22... g5 {[%clk 0:00:35.6]} 23. a5 {[%clk 0:00:35.5]} 23...
Nbd7 {[%clk 0:00:29.9]} 24. Ne4 {[%clk 0:00:31.6]} 24... Rg8 {[%clk 0:00:21.7]}
25. Nxf6 {[%clk 0:00:23.4]} 25... Nxf6 {[%clk 0:00:22.1]} 26. Rfe1 {[%clk
0:00:19.4]} 26... g4 {[%clk 0:00:21.2]} 27. Re5 {[%clk 0:00:19.3]} 27... Qc8
{[%clk 0:00:21]} 28. h4 {[%clk 0:00:18.5]} 28... g3 {[%clk 0:00:20.9]} 29. f3
{[%clk 0:00:18.7]} 29... Nd7 {[%clk 0:00:16.8]} 30. Rd5 {[%clk 0:00:18.6]} 30...
Nf8 {[%clk 0:00:15.6]} 31. Qc4 {[%clk 0:00:15.3]} 31... Rg6 {[%clk 0:00:14.1]}
32. Qd4 {[%clk 0:00:15]} 32... Rh6 {[%clk 0:00:13.5]} 33. Rd8 {[%clk 0:00:14.1]}
33... Ng6 {[%clk 0:00:03.1]} 34. Rxc8+ {[%clk 0:00:13.1]} 34... Kxc8 {[%clk
0:00:04]} 35. Qg4+ {[%clk 0:00:09.2]} 35... Kb8 {[%clk 0:00:02.1]} 36. h5 {[%clk
0:00:09.5]} 36... Ne5 {[%clk 0:00:02.2]} 37. Qf4 {[%clk 0:00:07.8]} 37... Rxh5
{[%clk 0:00:01.7]} 38. Re1 {[%clk 0:00:05.8]} 38... Nc6 {[%clk 0:00:02]} 39.
Re8+ {[%clk 0:00:04.3]} 39... Ka7 {[%clk 0:00:02.5]} 40. Qxg3 {[%clk 0:00:02.9]}
40... Rxa5 {[%clk 0:00:03.4]} 41. Qf2+ {[%clk 0:00:02.7]} 41... b6 {[%clk
0:00:02.8]} 42. g4 {[%clk 0:00:03.6]} 42... Ra1+ {[%clk 0:00:02.4]} 43. Kg2
{[%clk 0:00:03.5]} 43... Rc1 {[%clk 0:00:03.3]} 44. Rh8 {[%clk 0:00:02.1]} 44...
Nb4 {[%clk 0:00:03.8]} 45. Rxh7 {[%clk 0:00:02.3]} 45... a5 {[%clk 0:00:03.7]}
46. Rxc7+ {[%clk 0:00:02.1]} 46... Ka6 {[%clk 0:00:04.2]} 47. g5 {[%clk
0:00:02.7]} 47... a4 {[%clk 0:00:04.6]} 48. g6 {[%clk 0:00:02.9]} 48... Nd5
{[%clk 0:00:05.5]} 49. Rd7 {[%clk 0:00:02.2]} 49... Nf4+ {[%clk 0:00:05.4]} 50.
Kg3 {[%clk 0:00:02.4]} 50... Nxg6 {[%clk 0:00:06.3]} 51. Kg4 {[%clk 0:00:02.4]}
51... Ne5+ {[%clk 0:00:06.7]} 52. Kf5 {[%clk 0:00:02.7]} 52... Nxd7 {[%clk
0:00:07.6]} 53. Ke6 {[%clk 0:00:03.1]} 53... Nc5+ {[%clk 0:00:08]} 54. Kd5
{[%clk 0:00:02.7]} 54... a3 {[%clk 0:00:08.5]} 55. Qd2 {[%clk 0:00:01.8]} 55...
Rb1 {[%clk 0:00:08]} 0-1

[Event "*** Titled Tuesday Blitz"]
[Site "Chess.com"]
[Date "2021.04.06"]
[Round "2"]
[White "jucAxx"]
[Black "JoliyRoger"]
[Result "0-1"]
[WhiteElo "2109"]
[BlackElo "2404"]
[TimeControl "180+1"]
[EndTime "10:19:23 PDT"]
[Termination "JoliyRoger won by checkmate"]

1. e4 {[%clk 0:03:00.9]} 1... c6 {[%clk 0:02:59.7]} 2. d4 {[%clk 0:03:00.7]}
2... d5 {[%clk 0:03:00.6]} 3. f3 {[%clk 0:03:01.2]} 3... e6 {[%clk 0:02:59.8]}
4. Nc3 {[%clk 0:03:01]} 4... b6 {[%clk 0:02:59.9]} 5. Be3 {[%clk 0:02:59.1]}
5... Nf6 {[%clk 0:03:00.2]} 6. e5 {[%clk 0:02:59]} 6... Nfd7 {[%clk 0:03:00.1]}
7. Bd3 {[%clk 0:02:55.8]} 7... Ba6 {[%clk 0:03:00.3]} 8. Nge2 {[%clk 0:02:55.4]}
8... c5 {[%clk 0:02:57.2]} 9. Bxa6 {[%clk 0:02:54.9]} 9... Nxa6 {[%clk
0:02:57.3]} 10. O-O {[%clk 0:02:53.8]} 10... Be7 {[%clk 0:02:31.4]} 11. Qe1
{[%clk 0:02:36.9]} 11... Nb4 {[%clk 0:02:25.8]} 12. Rc1 {[%clk 0:02:34.1]} 12...
cxd4 {[%clk 0:02:20.3]} 13. Bxd4 {[%clk 0:02:33.5]} 13... Nc6 {[%clk 0:02:20.7]}
14. f4 {[%clk 0:02:31.4]} 14... O-O {[%clk 0:02:20.7]} 15. Kh1 {[%clk
0:02:26.7]} 15... Rc8 {[%clk 0:02:16.4]} 16. Qg3 {[%clk 0:02:22.7]} 16... Nxd4
{[%clk 0:02:00.6]} 17. Nxd4 {[%clk 0:02:23.6]} 17... Bc5 {[%clk 0:02:01]} 18.
Nce2 {[%clk 0:02:23.5]} 18... Qe7 {[%clk 0:01:54.8]} 19. c3 {[%clk 0:02:22.9]}
19... f5 {[%clk 0:01:54.1]} 20. b4 {[%clk 0:02:12.6]} 20... Bxd4 {[%clk
0:01:50.8]} 21. Nxd4 {[%clk 0:02:13.5]} 21... Rc4 {[%clk 0:01:49.3]} 22. Nb5
{[%clk 0:02:06.5]} 22... Ra8 {[%clk 0:01:27]} 23. a4 {[%clk 0:01:56.5]} 23...
Nf8 {[%clk 0:01:25.4]} 24. Rf3 {[%clk 0:01:51.1]} 24... Qd7 {[%clk 0:01:02.5]}
25. Nd6 {[%clk 0:01:22]} 25... Rc6 {[%clk 0:01:02.6]} 26. Qg5 {[%clk 0:00:52.9]}
26... h6 {[%clk 0:00:59]} 27. Qh5 {[%clk 0:00:52.9]} 27... a5 {[%clk 0:00:51.1]}
28. b5 {[%clk 0:00:50.9]} 28... Rc4 {[%clk 0:00:50.7]} 29. Rg3 {[%clk
0:00:49.3]} 29... Kh7 {[%clk 0:00:38.1]} 30. Nxc4 {[%clk 0:00:45]} 30... dxc4
{[%clk 0:00:38.5]} 31. Rd1 {[%clk 0:00:44.7]} 31... Qe7 {[%clk 0:00:33.9]} 32.
Rd6 {[%clk 0:00:42.1]} 32... Rd8 {[%clk 0:00:32.2]} 33. Qd1 {[%clk 0:00:40.3]}
33... Rc8 {[%clk 0:00:31.1]} 34. Rxb6 {[%clk 0:00:27.7]} 34... Qh4 {[%clk
0:00:30.9]} 35. Rf3 {[%clk 0:00:15.2]} 35... Ng6 {[%clk 0:00:29.6]} 36. g3
{[%clk 0:00:15.1]} 36... Qg4 {[%clk 0:00:27.2]} 37. Kg2 {[%clk 0:00:12.6]} 37...
Nh4+ {[%clk 0:00:27.5]} 38. Kf2 {[%clk 0:00:12.2]} 38... Nxf3 {[%clk 0:00:25.8]}
39. Qxf3 {[%clk 0:00:13.1]} 39... Qh3 {[%clk 0:00:26.3]} 40. Qg2 {[%clk
0:00:13.4]} 40... Qh5 {[%clk 0:00:26.7]} 41. Rd6 {[%clk 0:00:12.7]} 41... Qe8
{[%clk 0:00:22.1]} 42. Kg1 {[%clk 0:00:12.4]} 42... Rd8 {[%clk 0:00:19.1]} 43.
Qd2 {[%clk 0:00:12.4]} 43... Rb8 {[%clk 0:00:17.1]} 44. Qd4 {[%clk 0:00:11]}
44... Qh5 {[%clk 0:00:12.8]} 45. Rxe6 {[%clk 0:00:09]} 45... Qf3 {[%clk
0:00:13]} 46. Rd6 {[%clk 0:00:08.4]} 46... h5 {[%clk 0:00:12.4]} 47. Qf2 {[%clk
0:00:08]} 47... Qe4 {[%clk 0:00:11.2]} 48. Rd1 {[%clk 0:00:05.3]} 48... h4
{[%clk 0:00:10.6]} 49. Qd4 {[%clk 0:00:05.4]} 49... Qf3 {[%clk 0:00:10.2]} 50.
Rf1 {[%clk 0:00:04.5]} 50... Qg4 {[%clk 0:00:09.8]} 51. Qf2 {[%clk 0:00:04.1]}
51... Rd8 {[%clk 0:00:09.7]} 52. Kg2 {[%clk 0:00:03.4]} 52... Rd3 {[%clk
0:00:08.5]} 53. h3 {[%clk 0:00:02.4]} 53... Rxg3+ {[%clk 0:00:07.3]} 54. Kh2
{[%clk 0:00:02.9]} 54... Rxh3# {[%clk 0:00:07.4]} 0-1

[Event "*** Titled Tuesday Blitz"]
[Site "Chess.com"]
[Date "2021.04.06"]
[Round "2"]
[White "geordie_derraugh"]
[Black "Izoria123"]
[Result "1/2-1/2"]
[WhiteElo "2459"]
[BlackElo "2798"]
[TimeControl "180+1"]
[EndTime "10:19:24 PDT"]
[Termination "Game drawn - insufficient material"]

1. e4 {[%clk 0:03:00.9]} 1... c5 {[%clk 0:02:59.2]} 2. Nf3 {[%clk 0:03:00.6]}
2... a6 {[%clk 0:02:59.7]} 3. d3 {[%clk 0:02:59.5]} 3... e6 {[%clk 0:02:59]} 4.
g3 {[%clk 0:02:59.3]} 4... d5 {[%clk 0:02:59.2]} 5. Qe2 {[%clk 0:02:59.1]} 5...
Nf6 {[%clk 0:02:58.6]} 6. Bg2 {[%clk 0:02:58.1]} 6... Be7 {[%clk 0:02:59]} 7.
O-O {[%clk 0:02:57.9]} 7... O-O {[%clk 0:02:58.6]} 8. h4 {[%clk 0:02:53.2]} 8...
b6 {[%clk 0:02:55.5]} 9. e5 {[%clk 0:02:53.4]} 9... Nfd7 {[%clk 0:02:54.9]} 10.
c4 {[%clk 0:02:53.2]} 10... Bb7 {[%clk 0:02:54.3]} 11. Bf4 {[%clk 0:02:53]}
11... b5 {[%clk 0:02:45.6]} 12. Nbd2 {[%clk 0:02:49.6]} 12... Re8 {[%clk
0:02:43.6]} 13. Rfe1 {[%clk 0:02:42.4]} 13... Nb6 {[%clk 0:02:33.7]} 14. b3
{[%clk 0:02:17]} 14... Nc6 {[%clk 0:02:32.7]} 15. Rac1 {[%clk 0:02:12.7]} 15...
Rc8 {[%clk 0:02:30.2]} 16. Bh3 {[%clk 0:02:09.8]} 16... Rc7 {[%clk 0:02:29.5]}
17. Ng5 {[%clk 0:02:09.1]} 17... h6 {[%clk 0:02:27.1]} 18. Nxf7 {[%clk
0:02:08.3]} 18... Kxf7 {[%clk 0:02:26.1]} 19. Qh5+ {[%clk 0:02:08.4]} 19... Kf8
{[%clk 0:02:10.6]} 20. Bxh6 {[%clk 0:01:49.5]} 20... Bxh4 {[%clk 0:01:46.1]} 21.
gxh4 {[%clk 0:01:18.6]} 21... gxh6 {[%clk 0:01:41.2]} 22. Qxh6+ {[%clk
0:01:18.9]} 22... Rg7+ {[%clk 0:01:40.3]} 23. Kh2 {[%clk 0:01:18.3]} 23... Qc7
{[%clk 0:00:58.6]} 24. Nf3 {[%clk 0:01:09.8]} 24... Kg8 {[%clk 0:00:41.3]} 25.
Bxe6+ {[%clk 0:01:08.2]} 25... Rxe6 {[%clk 0:00:42.1]} 26. Qxe6+ {[%clk
0:01:07.9]} 26... Qf7 {[%clk 0:00:41.3]} 27. Ng5 {[%clk 0:00:33.6]} 27... Qxe6
{[%clk 0:00:21.6]} 28. Nxe6 {[%clk 0:00:34.5]} 28... Re7 {[%clk 0:00:20.7]} 29.
Rg1+ {[%clk 0:00:33.1]} 29... Kf7 {[%clk 0:00:18.8]} 30. cxd5 {[%clk 0:00:30.1]}
30... Nxe5 {[%clk 0:00:17.9]} 31. Ng5+ {[%clk 0:00:22.3]} 31... Ke8 {[%clk
0:00:17.4]} 32. Rxc5 {[%clk 0:00:22.2]} 32... Nxd5 {[%clk 0:00:17.2]} 33. Rd1
{[%clk 0:00:16]} 33... Nf4 {[%clk 0:00:11.3]} 34. d4 {[%clk 0:00:14.5]} 34...
Nf3+ {[%clk 0:00:09.9]} 35. Nxf3 {[%clk 0:00:13.4]} 35... Bxf3 {[%clk
0:00:10.8]} 36. Rdc1 {[%clk 0:00:12.2]} 36... Nd3 {[%clk 0:00:09.8]} 37. Rc8+
{[%clk 0:00:11.6]} 37... Kf7 {[%clk 0:00:09.6]} 38. R1c7 {[%clk 0:00:11.7]}
38... Nb4 {[%clk 0:00:09]} 39. Rxe7+ {[%clk 0:00:11.1]} 39... Kxe7 {[%clk
0:00:09.9]} 40. a3 {[%clk 0:00:10]} 40... Nc6 {[%clk 0:00:09.4]} 41. Ra8 {[%clk
0:00:06.8]} 41... Nxd4 {[%clk 0:00:09.3]} 42. Rxa6 {[%clk 0:00:07.2]} 42... Nxb3
{[%clk 0:00:09.6]} 43. Rb6 {[%clk 0:00:07.4]} 43... Be2 {[%clk 0:00:09.1]} 44.
Kg3 {[%clk 0:00:07.4]} 44... Kf7 {[%clk 0:00:09.5]} 45. f4 {[%clk 0:00:07.6]}
45... Kg7 {[%clk 0:00:09.2]} 46. Re6 {[%clk 0:00:07.3]} 46... Bc4 {[%clk
0:00:08.7]} 47. Rb6 {[%clk 0:00:07]} 47... Nc5 {[%clk 0:00:07.9]} 48. Rc6 {[%clk
0:00:07]} 48... Ne6 {[%clk 0:00:06.3]} 49. a4 {[%clk 0:00:06.4]} 49... Nd4
{[%clk 0:00:06.4]} 50. Rc7+ {[%clk 0:00:06.6]} 50... Kf6 {[%clk 0:00:06.9]} 51.
axb5 {[%clk 0:00:07]} 51... Bxb5 {[%clk 0:00:05.5]} 52. Rb7 {[%clk 0:00:06.1]}
52... Bc6 {[%clk 0:00:04.3]} 53. Rb6 {[%clk 0:00:06]} 53... Kf5 {[%clk
0:00:04.5]} 54. h5 {[%clk 0:00:05.3]} 54... Be8 {[%clk 0:00:02.6]} 55. Ra6
{[%clk 0:00:02.7]} 55... Bxh5 {[%clk 0:00:01.9]} 56. Kh4 {[%clk 0:00:03.6]}
56... Kxf4 {[%clk 0:00:01.6]} 57. Kxh5 {[%clk 0:00:03.2]} 57... Nf3 {[%clk
0:00:02.5]} 58. Ra4+ {[%clk 0:00:03.2]} 58... Ke3 {[%clk 0:00:02.6]} 59. Ra3+
{[%clk 0:00:03.6]} 59... Ke4 {[%clk 0:00:02.6]} 60. Rxf3 {[%clk 0:00:04.5]}
60... Kxf3 {[%clk 0:00:02.6]} 1/2-1/2

[Event "*** Titled Tuesday Blitz"]
[Site "Chess.com"]
[Date "2021.04.06"]
[Round "2"]
[White "EugeneRougon"]
[Black "if_name_main_a"]
[Result "1/2-1/2"]
[WhiteElo "2734"]
[BlackElo "2348"]
[TimeControl "180+1"]
[EndTime "10:19:25 PDT"]
[Termination "Game drawn by agreement"]

1. e4 {[%clk 0:03:00.9]} 1... e6 {[%clk 0:03:00.5]} 2. d4 {[%clk 0:03:00.2]}
2... d5 {[%clk 0:03:01.1]} 3. Nd2 {[%clk 0:02:58.1]} 3... c5 {[%clk 0:03:01.7]}
4. Ngf3 {[%clk 0:02:57.3]} 4... cxd4 {[%clk 0:03:02.3]} 5. exd5 {[%clk 0:02:57]}
5... Qxd5 {[%clk 0:03:03.2]} 6. Bc4 {[%clk 0:02:56.9]} 6... Qd7 {[%clk
0:03:03.9]} 7. O-O {[%clk 0:02:54.1]} 7... Nc6 {[%clk 0:03:04.4]} 8. Re1 {[%clk
0:02:44.6]} 8... a6 {[%clk 0:03:03.5]} 9. a4 {[%clk 0:02:44]} 9... Bd6 {[%clk
0:02:59.7]} 10. Ne4 {[%clk 0:02:43.1]} 10... Nge7 {[%clk 0:02:51]} 11. b3 {[%clk
0:02:32.1]} 11... O-O {[%clk 0:02:45.1]} 12. Nxd6 {[%clk 0:02:32]} 12... Qxd6
{[%clk 0:02:44.5]} 13. Ba3 {[%clk 0:02:32.9]} 13... Qd7 {[%clk 0:02:38.3]} 14.
Bxe7 {[%clk 0:02:25.2]} 14... Qxe7 {[%clk 0:02:37.3]} 15. Nxd4 {[%clk
0:02:24.9]} 15... Nxd4 {[%clk 0:02:29.7]} 16. Qxd4 {[%clk 0:02:25.8]} 16... Bd7
{[%clk 0:02:30]} 17. a5 {[%clk 0:02:20.8]} 17... Bc6 {[%clk 0:02:29.7]} 18. Rad1
{[%clk 0:02:17.5]} 18... Qg5 {[%clk 0:02:23.5]} 19. g3 {[%clk 0:02:09.9]} 19...
Qxa5 {[%clk 0:02:22.4]} 20. Re5 {[%clk 0:02:07.6]} 20... Qc7 {[%clk 0:02:15.9]}
21. Qe3 {[%clk 0:02:07.9]} 21... Rad8 {[%clk 0:02:09.4]} 22. Bd3 {[%clk
0:02:08]} 22... g6 {[%clk 0:01:58.4]} 23. Re1 {[%clk 0:02:06.7]} 23... Qd6
{[%clk 0:01:55.2]} 24. Rc5 {[%clk 0:02:00.2]} 24... Qd4 {[%clk 0:01:53.7]} 25.
Qxd4 {[%clk 0:02:00.5]} 25... Rxd4 {[%clk 0:01:54]} 26. Bxa6 {[%clk 0:02:01.4]}
26... Ra8 {[%clk 0:01:33.7]} 27. Bd3 {[%clk 0:01:59.6]} 27... Ra2 {[%clk
0:01:31.6]} 28. f4 {[%clk 0:01:55.6]} 28... Kg7 {[%clk 0:01:31]} 29. b4 {[%clk
0:01:48.1]} 29... Rxb4 {[%clk 0:01:28.1]} 30. Kf2 {[%clk 0:01:42.5]} 30... Ra3
{[%clk 0:01:14.1]} 31. Rce5 {[%clk 0:01:27]} 31... Rb2 {[%clk 0:01:13.1]} 32.
Ke3 {[%clk 0:01:26.6]} 32... Bd5 {[%clk 0:01:10]} 33. Kd4 {[%clk 0:01:20.1]}
33... b5 {[%clk 0:01:01.6]} 34. g4 {[%clk 0:01:14.8]} 34... b4 {[%clk
0:01:00.4]} 35. f5 {[%clk 0:01:10.9]} 35... b3 {[%clk 0:00:59.2]} 36. c4 {[%clk
0:01:06.6]} 36... Bf3 {[%clk 0:00:48.9]} 37. fxe6 {[%clk 0:01:02.9]} 37... fxe6
{[%clk 0:00:49.1]} 38. g5 {[%clk 0:00:55]} 38... Bg4 {[%clk 0:00:49.2]} 39. c5
{[%clk 0:00:48.7]} 39... Rd2 {[%clk 0:00:38]} 40. Kc3 {[%clk 0:00:43.5]} 40...
Rxh2 {[%clk 0:00:37.8]} 41. Kb4 {[%clk 0:00:42.6]} 41... Rha2 {[%clk 0:00:32.7]}
42. c6 {[%clk 0:00:30.2]} 42... b2 {[%clk 0:00:29.7]} 43. c7 {[%clk 0:00:25.1]}
43... Ra8 {[%clk 0:00:29.8]} 44. Rc5 {[%clk 0:00:20.2]} 44... R2a4+ {[%clk
0:00:28.9]} 45. Kc3 {[%clk 0:00:18.7]} 45... Ra3+ {[%clk 0:00:29.3]} 46. Kd2
{[%clk 0:00:16.5]} 46... Rc8 {[%clk 0:00:27]} 47. Be4 {[%clk 0:00:13.8]} 47...
Bf5 {[%clk 0:00:25.9]} 48. Bxf5 {[%clk 0:00:12.6]} 48... gxf5 {[%clk 0:00:25.2]}
49. Kc2 {[%clk 0:00:11.3]} 49... Ra7 {[%clk 0:00:24.4]} 50. Rxe6 {[%clk
0:00:10.8]} 50... Raxc7 {[%clk 0:00:21.8]} 51. Rxc7+ {[%clk 0:00:11.7]} 51...
Rxc7+ {[%clk 0:00:22.6]} 52. Kxb2 {[%clk 0:00:12.6]} 52... Rf7 {[%clk
0:00:20.9]} 53. Kc2 {[%clk 0:00:12.2]} 53... f4 {[%clk 0:00:21.4]} 54. Kd2
{[%clk 0:00:12.9]} 54... f3 {[%clk 0:00:20.5]} 55. Ke1 {[%clk 0:00:13.1]} 55...
Rf5 {[%clk 0:00:19.5]} 56. Kf2 {[%clk 0:00:13.2]} 56... Kf7 {[%clk 0:00:18.2]}
57. Rh6 {[%clk 0:00:12.8]} 57... Kg7 {[%clk 0:00:18.3]} 58. Ra6 {[%clk
0:00:11.7]} 58... Kf7 {[%clk 0:00:15.9]} 59. Rf6+ {[%clk 0:00:08.5]} 59... Rxf6
{[%clk 0:00:15.9]} 60. gxf6 {[%clk 0:00:09.4]} 60... Kxf6 {[%clk 0:00:16.5]} 61.
Kxf3 {[%clk 0:00:10.3]} 61... Kg5 {[%clk 0:00:17.1]} 62. Kg3 {[%clk 0:00:09.9]}
1/2-1/2

[Event "*** Titled Tuesday Blitz"]
[Site "Chess.com"]
[Date "2021.04.06"]
[Round "2"]
[White "mikolka1985"]
[Black "Rakesh"]
[Result "0-1"]
[WhiteElo "2653"]
[BlackElo "2490"]
[TimeControl "180+1"]
[EndTime "10:19:29 PDT"]
[Termination "Rakesh won by resignation"]

1. d4 {[%clk 0:03:00.9]} 1... Nf6 {[%clk 0:02:58.3]} 2. c4 {[%clk 0:03:00.1]}
2... e5 {[%clk 0:02:56.9]} 3. dxe5 {[%clk 0:02:58.6]} 3... Ng4 {[%clk
0:02:56.3]} 4. Nf3 {[%clk 0:02:55]} 4... Bc5 {[%clk 0:02:56.2]} 5. e3 {[%clk
0:02:54.6]} 5... Nc6 {[%clk 0:02:56.2]} 6. Be2 {[%clk 0:02:53.3]} 6... O-O
{[%clk 0:02:54.1]} 7. O-O {[%clk 0:02:52.4]} 7... Re8 {[%clk 0:02:53.8]} 8. Nc3
{[%clk 0:02:51.2]} 8... Ngxe5 {[%clk 0:02:52.2]} 9. Nxe5 {[%clk 0:02:50.5]} 9...
Nxe5 {[%clk 0:02:49.4]} 10. b3 {[%clk 0:02:50.1]} 10... a5 {[%clk 0:02:49.6]}
11. Bb2 {[%clk 0:02:48.5]} 11... Ra6 {[%clk 0:02:49.8]} 12. Na4 {[%clk
0:02:37.3]} 12... Ba7 {[%clk 0:02:46.9]} 13. Bd4 {[%clk 0:02:36.5]} 13... Bb8
{[%clk 0:02:40.4]} 14. Qd2 {[%clk 0:01:50.7]} 14... Rh6 {[%clk 0:02:31.9]} 15.
f4 {[%clk 0:01:47.6]} 15... Nc6 {[%clk 0:02:21.8]} 16. Bb2 {[%clk 0:01:46.9]}
16... Qh4 {[%clk 0:02:12.6]} 17. h3 {[%clk 0:01:46.1]} 17... Ba7 {[%clk
0:02:11.4]} 18. c5 {[%clk 0:01:45.2]} 18... d6 {[%clk 0:02:08.8]} 19. Rac1
{[%clk 0:01:35.6]} 19... Bxh3 {[%clk 0:01:46.6]} 20. Bf3 {[%clk 0:01:30.2]}
20... Bg4 {[%clk 0:01:29.5]} 21. Bxg4 {[%clk 0:01:25.4]} 21... Qxg4 {[%clk
0:01:15.5]} 22. Rf3 {[%clk 0:01:24.6]} 22... Qh4 {[%clk 0:01:07.2]} 23. Rh3
{[%clk 0:01:22.5]} 23... Qe7 {[%clk 0:00:57.3]} 24. Rxh6 {[%clk 0:01:18.3]}
24... gxh6 {[%clk 0:00:58.2]} 25. Re1 {[%clk 0:01:15.7]} 25... dxc5 {[%clk
0:00:56]} 26. Nc3 {[%clk 0:01:04.6]} 26... Nb4 {[%clk 0:00:40.2]} 27. a3 {[%clk
0:01:02.5]} 27... Rd8 {[%clk 0:00:33.4]} 28. Qe2 {[%clk 0:00:57.8]} 28... Nd3
{[%clk 0:00:32.8]} 29. Qg4+ {[%clk 0:00:44.1]} 29... Kf8 {[%clk 0:00:31.6]} 30.
Nd5 {[%clk 0:00:43.6]} 30... Rxd5 {[%clk 0:00:23.9]} 31. Bg7+ {[%clk 0:00:39.8]}
31... Ke8 {[%clk 0:00:24.2]} 32. Re2 {[%clk 0:00:39.7]} 32... Qe6 {[%clk
0:00:22.7]} 33. Qg3 {[%clk 0:00:35.1]} 33... a4 {[%clk 0:00:18.1]} 34. bxa4
{[%clk 0:00:27.7]} 34... c4 {[%clk 0:00:16.2]} 35. Bd4 {[%clk 0:00:27]} 35...
Bxd4 {[%clk 0:00:14.3]} 36. Kf1 {[%clk 0:00:23.4]} 36... Bf6 {[%clk 0:00:13.8]}
37. e4 {[%clk 0:00:22.7]} 37... Rc5 {[%clk 0:00:12.9]} 38. e5 {[%clk 0:00:22]}
38... Be7 {[%clk 0:00:13.1]} 39. Re4 {[%clk 0:00:17.3]} 39... Qf5 {[%clk
0:00:13]} 40. Rd4 {[%clk 0:00:16.7]} 40... Rxe5 {[%clk 0:00:10.9]} 41. Qg8+
{[%clk 0:00:12]} 41... Bf8 {[%clk 0:00:10.9]} 42. g4 {[%clk 0:00:07.8]} 42...
Qe6 {[%clk 0:00:08.2]} 43. fxe5 {[%clk 0:00:07]} 43... Qxe5 {[%clk 0:00:08]} 44.
Rd8+ {[%clk 0:00:06]} 44... Kxd8 {[%clk 0:00:08]} 45. Qxf8+ {[%clk 0:00:06.9]}
45... Qe8 {[%clk 0:00:08]} 46. Qb4 {[%clk 0:00:05.3]} 46... Qe1+ {[%clk
0:00:08.4]} 47. Qxe1 {[%clk 0:00:04.6]} 47... Nxe1 {[%clk 0:00:09.3]} 48. Kxe1
{[%clk 0:00:05.5]} 48... Ke7 {[%clk 0:00:09.3]} 49. Kd2 {[%clk 0:00:06.4]} 49...
Ke6 {[%clk 0:00:09.5]} 50. Kc3 {[%clk 0:00:07.3]} 50... f5 {[%clk 0:00:10.1]}
51. gxf5+ {[%clk 0:00:06.7]} 51... Kxf5 {[%clk 0:00:11]} 52. Kxc4 {[%clk
0:00:07.6]} 52... h5 {[%clk 0:00:10.1]} 53. a5 {[%clk 0:00:08.5]} 53... h4
{[%clk 0:00:10.3]} 54. a6 {[%clk 0:00:09.1]} 54... bxa6 {[%clk 0:00:10.1]} 55.
Kc5 {[%clk 0:00:09.2]} 55... h3 {[%clk 0:00:11]} 56. Kc6 {[%clk 0:00:09.3]}
56... h2 {[%clk 0:00:11.4]} 57. Kxc7 {[%clk 0:00:08.8]} 57... h1=Q {[%clk
0:00:12.3]} 0-1